bitfinex/quotes_ETHUSD_20250802
["timestamp","ask_amount","ask_price","bid_price","bid_amount"]
[1754115194204,0.4429,3513.3,3512.8,4.477]
[1754115194408,0.1424,3512.9,3512.8,4.9138]
[1754115194969,0.1424,3512.9,3512.8,5.385]
[1754115195395,0.1424,3512.9,3512.8,0.908]
[1754115197091,0.1424,3512.9,3512.8,0.4712]
[1754115197909,0.1424,3512.9,3512.6,0.1444]
[1754115198147,0.4429,3512.8,3512.7,4.476]
[1754115198580,0.4429,3512.8,3512.6,0.002]
[1754115198780,0.1424,3512.7,3512.6,0.002]
[1754115201120,0.1424,3512.7,3512.6,0.4732]
[1754115205522,0.1424,3512.7,3512.6,0.002]
[1754115206434,0.1424,3512.7,3512.6,0.4668]
[1754115211262,0.1424,3512.7,3512.6,12.14782888]
[1754115211434,0.1424,3512.9,3512.6,12.64180888]
[1754115211744,0.1424,3512.9,3512.7,0.9217]
[1754115212034,0.1424,3512.9,3512.8,4.471]
[1754115212331,0.1424,3512.9,3512.8,5.3927]
[1754115212532,0.1424,3512.9,3512.8,7.12589009]
[1754115212711,0.1424,3512.9,3512.8,7.98155209]
[1754115215440,0.1424,3512.9,3512.8,7.52365209]
[1754115215600,0.1424,3512.9,3512.8,5.790462]
[1754115217247,0.1424,3512.9,3512.8,6.247362]
[1754115219440,0.1424,3512.9,3512.8,5.790462]
[1754115220402,0.1424,3512.9,3512.8,0.855662]
[1754115220668,0.5953,3512.9,3512.7,4.468]
[1754115220843,0.02847072,3513.0,3512.7,4.468]
[1754115221003,0.1424,3512.8,3512.7,4.468]
[1754115221403,0.5953,3512.8,3512.7,4.468]
[1754115222248,0.1424,3512.8,3512.7,4.468]
[1754115222563,0.1424,3512.8,3512.7,4.9328]
[1754115222757,0.1424,3512.8,3512.7,5.88318]
[1754115223108,0.001,3513.4,3512.7,5.88318]
[1754115223309,0.1424,3512.9,3512.8,0.9217]
[1754115224330,0.001,3513.4,3512.8,0.9217]
[1754115224534,0.1424,3513.1,3512.9,4.467]
[1754115224833,0.1424,3513.1,3513.0,0.9217]
[1754115225143,0.1424,3513.1,3513.0,0.4648]
[1754115225452,30.0,3513.0,3512.6,0.002]
[1754115225667,3.02847072,3512.9,3512.6,0.002]
[1754115225821,35.264,3512.7,3512.6,0.002]
[1754115226152,35.4064,3512.7,3512.6,0.002]
[1754115226502,36.3233,3512.7,3512.6,0.002]
[1754115226707,31.6093,3512.7,3512.6,0.002]
[1754115228254,33.3233,3512.7,3512.6,0.002]
[1754115229858,39.17011299,3512.7,3512.6,0.002]
[1754115230180,36.3233,3512.7,3512.6,0.002]
[1754115230843,43.3433,3512.7,3512.6,0.002]
[1754115231463,50.3433,3512.7,3512.6,0.002]
[1754115231883,20.3433,3512.7,3512.6,0.002]
[1754115232065,54.8083,3512.7,3512.6,0.002]
[1754115232386,57.65511299,3512.7,3512.6,0.002]
[1754115233501,54.8083,3512.7,3512.6,0.002]
[1754115239523,54.3443,3512.7,3512.6,0.002]
[1754115241300,57.66961299,3512.7,3512.6,0.002]
[1754115241664,54.8228,3512.7,3512.6,0.002]
[1754115243422,53.8914,3512.7,3512.6,0.002]
[1754115243592,53.8914,3512.7,3512.6,0.4953]
[1754115243793,53.3414,3512.7,3512.6,0.4953]
[1754115244303,53.8914,3512.7,3512.6,0.4953]
[1754115244490,44.02,3512.7,3512.6,0.958]
[1754115244686,47.1624,3512.7,3512.6,0.958]
[1754115244889,21.6244,3512.7,3512.6,0.958]
[1754115245629,51.6244,3512.7,3512.6,0.002]
[1754115246131,51.6244,3512.7,3512.6,0.4953]
[1754115246329,21.6244,3512.7,3512.6,0.958]
[1754115247605,17.1624,3512.7,3512.6,0.958]
[1754115247806,21.6224,3512.7,3512.6,0.958]
[1754115248003,21.6224,3512.7,3512.6,0.4953]
[1754115248211,21.6224,3512.7,3512.6,0.958]
[1754115251130,21.6224,3512.7,3512.6,0.4953]
[1754115251726,17.1624,3512.7,3512.6,0.4953]
[1754115251930,21.6214,3512.7,3512.6,0.4953]
[1754115252496,31.50896588,3512.7,3512.6,0.002]
[1754115252696,68.81477887,3512.7,3512.6,0.002]
[1754115252931,54.63751738,3512.7,3512.6,0.002]
[1754115253109,59.09651738,3512.7,3512.6,0.002]
[1754115253310,61.94333037,3512.7,3512.6,0.002]
[1754115254036,62.2466785,3512.7,3512.6,0.002]
[1754115255338,59.39986551,3512.7,3512.6,0.002]
[1754115255835,62.2466785,3512.7,3512.6,0.002]
[1754115256529,59.39986551,3512.7,3512.6,0.002]
[1754115256723,47.4550515,3512.7,3512.6,0.002]
[1754115257102,47.0139515,3512.7,3512.6,0.4953]
[1754115257302,47.0139515,3512.7,3512.6,0.002]
[1754115257634,47.4550515,3512.7,3512.6,0.002]
[1754115258473,47.9335515,3512.7,3512.6,0.002]
[1754115258639,62.2466785,3512.7,3512.6,0.002]
[1754115259478,32.2466785,3512.7,3512.6,0.002]
[1754115259663,62.2466785,3512.7,3512.6,0.002]
[1754115261640,32.2466785,3512.7,3512.6,0.002]
[1754115261841,62.2466785,3512.7,3512.6,0.002]
[1754115262772,49.57745121,3512.3,3512.2,0.002]
[1754115262968,54.17585121,3512.3,3512.2,0.002]
[1754115263297,55.14315121,3512.3,3512.2,0.002]
[1754115268975,61.99015121,3512.3,3512.2,0.002]
[1754115270490,57.53415121,3512.3,3512.2,0.002]
[1754115270694,61.98815121,3512.3,3512.2,0.002]
[1754115271182,61.49505121,3512.3,3512.2,0.002]
[1754115271587,61.98815121,3512.3,3512.2,0.002]
[1754115272804,61.49505121,3512.3,3512.2,0.002]
[1754115273004,45.1005372,3512.3,3512.2,0.002]
[1754115273339,61.16944662,3512.3,3512.2,0.002]
[1754115273915,62.13674662,3512.3,3512.2,0.002]
[1754115274208,61.64364662,3512.3,3512.2,0.002]
[1754115274988,68.64364662,3512.3,3512.2,0.002]
[1754115276677,69.13674662,3512.3,3512.2,0.002]
[1754115276896,68.16944662,3512.3,3512.2,0.002]
[1754115277111,68.16944662,3512.3,3512.2,0.4806]
[1754115277313,68.16944662,3512.3,3512.2,0.002]
[1754115278098,68.16744662,3512.3,3512.2,0.002]
[1754115278399,56.70113261,3512.3,3512.2,0.4806]
[1754115279201,56.70113261,3512.3,3512.2,0.002]
[1754115279904,56.70113261,3512.3,3512.2,0.4806]
[1754115280116,53.30299541,3512.3,3512.2,0.9413]
[1754115280627,53.85299541,3512.3,3512.2,0.9413]
[1754115280933,53.85299541,3512.3,3512.2,0.002]
[1754115280934,23.21643261,3512.3,3512.2,0.002]
[1754115281110,57.66743261,3512.3,3512.2,0.002]
[1754115281990,27.17433261,3512.3,3512.2,0.002]
[1754115282194,8.11186694,3511.4,3511.3,0.002]
[1754115282431,54.31010081,3511.4,3511.3,0.002]
[1754115283003,54.52653462,3511.4,3511.3,0.002]
[1754115283204,55.49383462,3511.4,3511.3,0.002]
[1754115284444,50.07653462,3511.4,3511.3,0.002]
[1754115284625,55.00073462,3511.4,3511.3,0.002]
[1754115284823,62.00073462,3511.4,3511.3,0.002]
[1754115286033,62.49383462,3511.4,3511.3,0.002]
[1754115286238,5.11277022,3510.3,3510.2,0.4786]
[1754115286454,42.59024094,3510.3,3510.2,0.4786]
[1754115286754,42.70417022,3510.3,3510.2,0.4786]
[1754115286918,0.55,3510.0,3508.5,0.621]
[1754115287259,30.55,3509.8,3509.7,0.4607]
[1754115287609,30.6924,3509.8,3509.7,0.9393]
[1754115288537,33.6924,3509.8,3509.7,0.9393]
[1754115288741,3.0,3509.7,3508.2,0.1424]
[1754115288906,0.55,3509.4,3509.3,0.4607]
[1754115289109,5.16987072,3509.4,3509.3,0.4607]
[1754115289418,5.16987072,3509.4,3509.3,0.9393]
[1754115289728,5.1414,3509.4,3509.3,0.9393]
[1754115290226,5.35823712,3509.4,3509.3,0.9393]
[1754115291342,35.35823712,3509.4,3509.3,0.9393]
[1754115291510,38.35823712,3509.4,3509.3,0.4786]
[1754115292544,38.35823712,3509.4,3509.3,0.9454]
[1754115292939,33.90923712,3509.4,3509.3,0.9454]
[1754115293153,38.35823712,3509.4,3509.3,0.9454]
[1754115296446,40.07223712,3509.4,3509.3,0.9454]
[1754115296858,35.62323712,3509.4,3509.3,0.9454]
[1754115297139,8.35723712,3509.4,3509.3,0.9454]
[1754115301445,15.35723712,3509.4,3509.3,0.9454]
[1754115301641,45.35723712,3509.4,3509.3,0.4786]
[1754115302154,45.35723712,3509.4,3509.3,0.9454]
[1754115302353,0.55,3509.0,3508.1,0.1424]
[1754115302512,8.11446462,3508.2,3507.6,0.002]
[1754115302710,0.1424,3507.7,3507.6,0.002]
[1754115302947,4.5884,3507.7,3507.6,0.002]
[1754115303244,35.1384,3507.7,3507.6,0.002]
[1754115303492,39.8524,3507.7,3507.6,0.002]
[1754115303639,40.3253,3507.7,3507.6,0.002]
[1754115303842,35.4064,3507.7,3507.6,0.002]
[1754115304043,7.5884,3507.7,3507.6,0.9548]
[1754115305370,7.5884,3507.7,3507.6,0.488]
[1754115305870,0.1424,3507.7,3507.6,0.9548]
[1754115306071,4.5884,3507.7,3507.6,0.9548]
[1754115306674,0.1424,3507.7,3507.6,0.9548]
[1754115306976,4.5884,3507.7,3507.6,0.9548]
[1754115307470,0.1424,3507.7,3507.6,0.9548]
[1754115307653,4.5894,3507.7,3507.6,0.9548]
[1754115307857,0.1424,3507.7,3507.6,0.9548]
[1754115308172,4.5894,3507.7,3507.6,0.9548]
[1754115308756,0.1424,3507.7,3507.6,0.9548]
[1754115308963,4.5894,3507.7,3507.6,0.9548]
[1754115309978,4.5894,3507.7,3507.6,0.488]
[1754115310171,4.5894,3507.7,3507.6,0.002]
[1754115310476,4.5894,3507.7,3507.6,0.488]
[1754115310881,4.5894,3507.7,3507.6,0.002]
[1754115312002,4.5894,3507.7,3507.6,0.488]
[1754115312158,0.1424,3507.7,3507.6,0.488]
[1754115312359,4.5894,3507.7,3507.6,0.488]
[1754115315050,4.5894,3507.7,3507.6,0.002]
[1754115315451,40.3263,3507.7,3507.6,0.002]
[1754115315657,40.7765,3507.7,3507.6,0.002]
[1754115315887,43.62737094,3507.7,3507.6,0.002]
[1754115316794,40.7765,3507.7,3507.6,0.002]
[1754115317495,43.62737094,3507.7,3507.6,0.002]
[1754115319593,13.62737094,3507.7,3507.6,0.002]
[1754115319923,43.62737094,3507.7,3507.6,0.002]
[1754115320127,46.63437094,3507.7,3507.6,0.002]
[1754115320314,57.78620481,3507.7,3507.6,0.002]
[1754115320489,62.23320481,3507.7,3507.6,0.002]
[1754115320831,32.23320481,3507.7,3507.6,0.002]
[1754115320993,65.24120481,3507.7,3507.6,0.002]
[1754115322300,65.24120481,3507.7,3507.2,0.002]
[1754115322301,38.11519607,3507.3,3507.2,0.002]
[1754115322503,44.97019607,3507.3,3507.2,0.002]
[1754115322715,50.36459607,3507.3,3507.2,0.002]
[1754115322911,50.51341591,3507.3,3507.2,0.002]
[1754115323431,57.67024978,3507.3,3507.2,0.002]
[1754115323612,62.12124978,3507.3,3507.2,0.002]
[1754115324132,65.12924978,3507.3,3507.2,0.002]
[1754115324430,35.264,3506.2,3506.1,0.004]
[1754115324640,42.57009058,3506.2,3506.1,0.004]
[1754115324795,39.718,3506.2,3506.1,0.004]
[1754115324993,39.93749159,3506.2,3506.1,0.004]
[1754115325437,40.39669159,3506.2,3506.1,0.004]
[1754115325730,35.48349159,3506.2,3506.1,0.004]
[1754115326047,35.48349159,3506.2,3506.1,0.9167]
[1754115326048,9.93849159,3506.2,3506.1,0.9167]
[1754115326248,39.93749159,3506.2,3506.1,0.9167]
[1754115326646,39.93849159,3506.2,3506.1,0.9167]
[1754115326804,46.93849159,3506.2,3506.1,0.9167]
[1754115327004,37.0,3506.2,3506.1,0.9167]
[1754115327275,11.455,3506.2,3506.1,0.9167]
[1754115327546,7.0,3506.2,3506.1,0.9167]
[1754115327702,11.455,3506.2,3506.1,2.16895339]
[1754115327909,11.455,3506.2,3506.1,0.9167]
[1754115328108,7.0,3506.2,3506.1,0.9167]
[1754115328739,4.455,3506.7,3506.1,12.52253387]
[1754115328910,6.855,3507.3,3506.2,0.9127]
[1754115329110,4.457,3507.2,3506.3,0.9127]
[1754115329423,4.457,3507.2,3506.4,0.9127]
[1754115329619,11.457,3507.2,3506.1,0.004]
[1754115329944,11.457,3507.2,3506.5,0.9127]
[1754115330144,11.457,3507.2,3506.6,0.9127]
[1754115330309,0.02847072,3507.1,3506.7,0.4501]
[1754115330510,2.264,3506.7,3506.2,0.4626]
[1754115330740,4.456,3506.6,3506.1,0.004]
[1754115330943,0.02847072,3506.5,3506.1,0.4666]
[1754115331143,0.55,3506.3,3506.1,0.4666]
[1754115331347,4.48547072,3506.2,3506.1,0.4666]
[1754115331641,4.48547072,3506.2,3506.1,0.004]
[1754115332045,6.74947072,3506.2,3506.1,0.004]
[1754115332255,37.1802,3506.2,3506.1,0.004]
[1754115332626,43.17469058,3506.2,3506.1,0.004]
[1754115332813,43.51849058,3506.2,3506.1,0.004]
[1754115333013,43.66735545,3506.2,3506.1,0.004]
[1754115335044,43.8104885,3506.2,3506.1,0.004]
[1754115335370,35.264,3505.1,3504.2,0.483657]
[1754115335566,43.52038564,3505.1,3504.2,0.483657]
[1754115335909,40.1812,3505.1,3504.2,0.021057]
[1754115336155,40.1812,3505.1,3504.4,0.4626]
[1754115336354,47.1812,3505.1,3504.4,0.4626]
[1754115336557,44.464,3505.1,3504.2,0.021057]
[1754115336758,44.464,3505.1,3504.5,0.4626]
[1754115336926,45.014,3505.1,3504.5,0.4626]
[1754115337126,48.81238564,3505.1,3504.2,0.483657]
[1754115337312,45.9594,3505.1,3504.2,0.483657]
[1754115337518,45.4732,3505.1,3504.4,0.4626]
[1754115338315,48.32618564,3505.1,3504.4,0.4626]
[1754115338534,48.5367616,3505.1,3504.4,0.4626]
[1754115338848,46.16997596,3505.1,3504.4,0.4626]
[1754115339247,47.88397596,3505.1,3504.4,0.4626]
[1754115339844,47.39777596,3505.1,3504.4,0.4626]
[1754115340445,45.22457596,3505.1,3504.7,0.4626]
[1754115340648,40.21057596,3505.1,3505.0,10.4626]
[1754115340816,44.471,3505.1,3505.0,10.9127]
[1754115341019,11.472,3505.1,3505.0,12.00397]
[1754115341456,14.472,3505.1,3505.0,11.09127]
[1754115341655,44.472,3505.1,3505.0,10.4626]
[1754115341961,45.23951583,3505.1,3505.0,10.0]
[1754115342369,15.23951583,3505.1,3505.0,10.0]
[1754115342664,45.38191583,3505.1,3505.0,10.0]
[1754115342830,48.23490147,3505.1,3505.0,10.0]
[1754115343035,48.69410147,3505.1,3505.0,10.002]
[1754115344038,45.84111583,3505.1,3505.0,10.002]
[1754115344237,40.90891583,3505.1,3505.0,10.002]
[1754115344451,45.38191583,3505.1,3505.0,10.002]
[1754115344923,40.90891583,3505.1,3505.0,10.002]
[1754115345259,45.38191583,3505.1,3505.0,10.4646]
[1754115345446,45.38191583,3505.1,3505.0,10.002]
[1754115345647,45.84111583,3505.1,3505.0,10.002]
[1754115345850,18.69410147,3505.1,3505.0,10.002]
[1754115346036,45.84111583,3505.1,3505.0,10.002]
[1754115346625,47.55511583,3505.1,3505.0,10.002]
[1754115346822,47.09591583,3505.1,3505.0,10.002]
[1754115347326,47.09491583,3505.1,3505.0,10.002]
[1754115347526,47.09491583,3505.1,3505.0,10.4646]
[1754115347721,42.62291583,3505.1,3505.0,10.4646]
[1754115347965,46.54391583,3505.1,3505.0,10.9147]
[1754115348463,46.54391583,3505.1,3505.0,10.4646]
[1754115348767,47.09391583,3505.1,3505.0,10.4646]
[1754115348938,42.62291583,3505.1,3505.0,10.4646]
[1754115349267,47.09491583,3505.1,3505.0,10.002]
[1754115349561,50.40710147,3505.1,3505.0,10.002]
[1754115350767,50.89330147,3505.1,3505.0,10.002]
[1754115351424,45.47590147,3505.1,3505.0,10.002]
[1754115351626,46.39951583,3505.1,3505.0,10.002]
[1754115351849,46.94951583,3505.1,3505.0,10.002]
[1754115352053,16.94951583,3505.1,3505.0,10.002]
[1754115352389,46.25550147,3505.1,3505.0,10.002]
[1754115352598,50.72850147,3505.1,3505.0,10.002]
[1754115353750,20.72850147,3505.1,3505.0,10.002]
[1754115353984,50.72850147,3505.1,3505.0,10.002]
[1754115354154,50.8774239,3505.1,3505.0,10.002]
[1754115357301,50.8744239,3505.1,3505.0,10.002]
[1754115358768,5.11763696,3504.3,3504.2,0.021057]
[1754115359112,42.58463696,3504.3,3504.2,0.021057]
[1754115359266,42.58963696,3504.3,3504.2,0.021057]
[1754115360503,39.735,3504.3,3504.2,0.937857]
[1754115361311,42.264,3504.3,3504.2,0.475557]
[1754115361602,46.8774,3504.3,3504.2,0.937857]
[1754115361801,49.73103696,3504.3,3504.2,0.021057]
[1754115362164,46.8764,3504.3,3504.2,0.475557]
[1754115362504,46.8794,3504.3,3504.2,0.937857]
[1754115362701,11.6174,3504.3,3504.2,0.937857]
[1754115363003,11.475,3504.3,3504.2,0.937857]
[1754115363298,11.6174,3504.3,3504.2,0.937857]
[1754115364019,11.6184,3504.3,3504.2,0.937857]
[1754115364505,40.0,3504.3,3504.2,0.475557]
[1754115364667,40.0,3504.3,3504.2,0.937857]
[1754115364668,45.041,3504.3,3504.2,0.937857]
[1754115365265,45.041,3504.3,3504.2,0.475557]
[1754115365467,46.758,3504.3,3504.2,0.475557]
[1754115365661,42.267,3504.3,3504.2,0.475557]
[1754115365894,46.758,3504.3,3504.2,0.937857]
[1754115366078,46.759,3504.3,3504.2,0.937857]
[1754115367007,46.759,3504.3,3504.2,0.021057]
[1754115367505,46.758,3504.3,3504.2,0.937857]
[1754115367866,49.61163696,3504.3,3504.2,0.021057]
[1754115368619,50.53363696,3504.3,3504.2,0.021057]
[1754115369384,50.68258153,3504.3,3504.2,0.021057]
[1754115370187,20.68258153,3504.3,3504.2,0.021057]
[1754115370516,50.68258153,3504.3,3504.2,0.021057]
[1754115370717,49.76058153,3504.3,3504.2,0.021057]
[1754115370877,50.20348153,3504.3,3504.2,0.021057]
[1754115371571,50.20648153,3504.3,3504.2,0.021057]
[1754115371772,41.717,3504.3,3504.2,0.021057]
[1754115371999,46.208,3504.3,3504.2,0.937857]
[1754115372215,49.61163696,3504.3,3504.2,0.021057]
[1754115372517,46.758,3504.3,3504.2,0.021057]
[1754115372715,49.61163696,3504.3,3504.2,0.021057]
[1754115372883,49.61463696,3504.3,3504.2,0.021057]
[1754115373229,50.06053696,3504.3,3504.2,0.021057]
[1754115374212,49.61363696,3504.3,3504.2,0.021057]
[1754115374438,46.76,3504.3,3504.2,0.021057]
[1754115374712,49.61363696,3504.3,3504.2,0.021057]
[1754115374924,41.717,3504.3,3504.2,0.475557]
[1754115375124,43.3524,3504.3,3504.2,0.937857]
[1754115375324,46.3524,3504.3,3504.2,0.475557]
[1754115375481,46.9024,3504.3,3504.2,0.475557]
[1754115375683,46.3524,3504.3,3504.2,0.937857]
[1754115375887,46.3524,3504.3,3504.2,0.475557]
[1754115376088,46.3524,3504.3,3504.2,0.937857]
[1754115376296,46.3544,3504.3,3504.2,0.937857]
[1754115376538,46.9044,3504.3,3504.2,0.937857]
[1754115377004,46.9044,3504.3,3504.2,0.021057]
[1754115377334,46.9044,3504.3,3504.2,0.475557]
[1754115377739,46.9044,3504.3,3504.2,0.021057]
[1754115377895,50.68003696,3504.3,3504.2,0.021057]
[1754115378092,46.04263696,3504.3,3504.2,0.021057]
[1754115378399,50.54363696,3504.3,3504.2,0.021057]
[1754115379125,2.85379983,3504.1,3500.1,0.1491576]
[1754115379331,8.275,3504.2,3502.1,0.4545]
[1754115379332,38.12169597,3503.0,3502.1,0.4545]
[1754115379618,38.12169597,3503.0,3500.1,0.1491576]
[1754115379619,42.13,3503.0,3502.5,0.4545]
[1754115379826,46.637,3503.0,3502.9,0.4791503]
[1754115380611,46.637,3503.0,3502.9,0.0246503]
[1754115380813,42.13,3503.0,3502.9,0.0246503]
[1754115380991,46.639,3503.0,3502.9,0.4791503]
[1754115381195,46.84920075,3503.0,3502.9,0.0246503]
[1754115381425,53.84920075,3503.0,3502.9,0.0246503]
[1754115381626,57.15399672,3503.0,3502.9,0.0246503]
[1754115381811,53.84920075,3503.0,3502.9,0.0246503]
[1754115382012,49.34020075,3503.0,3502.9,0.0246503]
[1754115382537,53.85920075,3503.0,3502.9,0.4747503]
[1754115383108,49.34020075,3503.0,3502.9,0.9290503]
[1754115383434,15.79020075,3503.0,3502.9,0.9290503]
[1754115383652,20.30820075,3503.0,3502.9,0.9290503]
[1754115383840,23.30820075,3503.0,3502.9,0.9290503]
[1754115384008,23.30920075,3503.0,3502.9,0.9290503]
[1754115384205,13.863,3503.0,3502.9,0.9290503]
[1754115384432,18.382,3503.0,3502.9,0.9290503]
[1754115384634,21.382,3503.0,3502.9,0.9290503]
[1754115385528,53.30821369,3503.0,3502.9,0.4747503]
[1754115385714,53.87421369,3503.0,3502.9,0.4747503]
[1754115387829,49.33921369,3503.0,3502.9,0.4747503]
[1754115388023,54.01561369,3503.0,3502.9,0.4747503]
[1754115389215,57.32040966,3503.0,3502.9,0.0246503]
[1754115389429,27.32040966,3503.0,3502.9,0.0246503]
[1754115389631,27.79970966,3503.0,3502.9,0.0246503]
[1754115390029,57.79970966,3503.0,3502.9,0.0246503]
[1754115390438,27.79970966,3503.0,3502.9,0.0246503]
[1754115390648,57.79970966,3503.0,3502.9,0.0246503]
[1754115390848,57.32040966,3503.0,3502.9,0.0246503]
[1754115391422,57.32040966,3503.0,3500.5,0.1432]
[1754115391423,0.55,3501.5,3500.2,0.11399789]
[1754115391748,3.55,3501.3,3500.3,2.97408677]
[1754115391956,3.55,3501.1,3500.4,0.9044]
[1754115392152,5.267,3500.7,3500.2,0.11399789]
[1754115392351,0.55,3500.4,3500.2,0.11399789]
[1754115392551,3.55,3500.4,3500.3,0.4501]
[1754115392754,38.097,3500.4,3500.3,0.4501]
[1754115392931,5.267,3500.3,3500.2,0.11399789]
[1754115393141,39.9732,3500.3,3500.2,0.11399789]
[1754115393531,38.2562,3500.3,3500.2,0.56409789]
[1754115393732,38.2562,3500.3,3500.2,0.11399789]
[1754115393733,35.4102,3500.3,3500.2,0.11399789]
[1754115394050,39.9732,3500.3,3500.2,0.11399789]
[1754115394428,35.4102,3500.3,3500.2,0.11399789]
[1754115394754,39.9792,3500.3,3500.2,0.11399789]
[1754115395119,40.4293,3500.3,3500.2,0.11399789]
[1754115395320,43.28619798,3500.3,3500.2,0.11399789]
[1754115395523,32.267,3500.1,3500.0,6.80515414]
[1754115395831,42.70206122,3500.1,3500.0,6.80515414]
[1754115396037,43.15216122,3500.1,3500.0,6.80515414]
[1754115396441,38.57416122,3500.1,3500.0,6.80515414]
[1754115396768,38.5841,3500.1,3500.0,6.80515414]
[1754115396971,41.44116122,3500.1,3500.0,6.80515414]
[1754115397490,48.44116122,3500.1,3500.0,6.80515414]
[1754115397829,50.15816122,3500.1,3500.0,6.80515414]
[1754115398296,50.16316122,3500.1,3500.0,6.80515414]
[1754115398933,45.57416122,3500.1,3500.0,6.80515414]
[1754115399261,50.16016122,3500.1,3500.0,6.80515414]
[1754115399762,45.57416122,3500.1,3500.0,6.80515414]
[1754115400329,40.55,3500.1,3500.0,6.80515414]
[1754115400529,37.0,3500.1,3500.0,7.25525414]
[1754115400783,41.584,3500.1,3500.0,7.70955414]
[1754115401139,44.584,3500.1,3500.0,7.70955414]
[1754115401339,37.0,3500.1,3500.0,7.70955414]
[1754115401557,41.585,3500.1,3500.0,6.80515414]
[1754115401851,47.99206122,3500.1,3500.0,6.80515414]
[1754115402168,40.0,3500.1,3500.0,7.25525414]
[1754115402350,45.148,3500.1,3500.0,7.25525414]
[1754115402532,44.598,3500.1,3500.0,7.25525414]
[1754115402736,44.598,3500.1,3500.0,7.70955414]
[1754115403363,40.0,3500.1,3500.0,7.70955414]
[1754115403578,44.596,3500.1,3500.0,7.25525414]
[1754115403884,48.00306122,3500.1,3500.0,6.80515414]
[1754115404192,0.55,3500.0,3498.0,0.4501]
[1754115404328,0.55,3500.0,3496.8,0.02327]
[1754115404329,30.0,3499.0,3497.5,0.4501]
[1754115404532,0.55,3498.1,3497.6,0.4501]
[1754115404732,30.0,3497.6,3497.3,0.4543]
[1754115404976,33.0,3497.4,3496.9,0.4543]
[1754115405141,30.0,3497.2,3497.0,0.4543]
[1754115405340,4.663,3497.1,3496.8,0.02327]
[1754115405572,0.1432,3496.9,3496.8,0.02327]
[1754115405730,4.8082,3496.9,3496.8,0.02327]
[1754115406079,4.8082,3496.9,3496.8,0.92767]
[1754115406386,4.8082,3496.9,3496.8,0.47337]
[1754115406548,38.3582,3496.9,3496.8,0.47337]
[1754115406747,34.8332,3496.9,3496.8,0.92767]
[1754115406963,4.8332,3496.9,3496.8,0.47337]
[1754115407338,4.69,3496.9,3496.8,0.92767]
[1754115407532,34.69,3496.9,3496.8,0.92767]
[1754115407737,37.689,3496.9,3496.8,0.92767]
[1754115408174,37.689,3496.9,3496.8,0.02527]
[1754115408336,10.4061,3496.9,3496.8,0.02527]
[1754115408745,10.4061,3496.9,3493.5,0.1]
[1754115408746,30.0,3495.8,3494.0,0.4543]
[1754115408891,30.0,3495.3,3495.0,0.4501]
[1754115409092,30.0,3495.3,3495.1,0.4501]
[1754115409290,4.704,3495.2,3495.0,0.4543]
[1754115409454,0.55,3495.4,3495.0,0.4543]
[1754115409455,34.704,3495.1,3495.0,0.4543]
[1754115409658,4.704,3495.1,3495.0,0.4543]
[1754115409880,4.704,3495.1,3495.0,0.9044]
[1754115410080,4.702,3495.1,3493.0,0.4501]
[1754115410282,30.0,3494.8,3493.1,0.93302786]
[1754115410492,30.0,3494.6,3493.2,0.9044]
[1754115410654,30.0,3494.9,3493.3,0.9044]
[1754115410852,30.0,3494.7,3493.4,0.9044]
[1754115411050,30.0,3494.7,3492.6,0.11681265]
[1754115411051,4.76847072,3494.6,3493.5,0.9044]
[1754115411251,4.76847072,3494.6,3493.6,0.9044]
[1754115411490,30.0,3494.5,3493.7,0.9044]
[1754115411790,4.742,3494.4,3493.8,0.4807]
[1754115411954,3.55,3495.4,3493.8,0.4807]
[1754115411955,3.0,3495.0,3493.9,0.4701]
[1754115412159,30.0,3494.6,3492.6,0.11681265]
[1754115412364,30.0,3493.7,3492.7,0.4807]
[1754115412571,4.873,3493.6,3492.8,0.4701]
[1754115412793,6.875,3494.0,3492.8,0.4701]
[1754115412794,6.875,3494.0,3492.9,0.5093295]
[1754115413009,4.882,3493.9,3493.0,0.4701]
[1754115413184,4.886,3493.8,3493.1,0.4807]
[1754115413367,6.875,3494.0,3493.2,0.4701]
[1754115413594,4.886,3493.9,3493.3,0.4807]
[1754115413785,4.886,3493.9,3493.4,0.4701]
[1754115413980,4.886,3493.9,3493.5,0.9508]
[1754115414193,4.89,3493.8,3493.6,0.9508]
[1754115414393,6.875,3494.0,3493.7,0.9508]
[1754115414608,6.875,3494.0,3492.6,0.11681265]
[1754115414609,4.91,3493.9,3493.8,0.9508]
[1754115414916,4.91,3493.9,3492.6,0.11681265]
[1754115415475,6.875,3494.0,3492.7,0.9508]
[1754115415811,4.907,3493.9,3492.8,0.9508]
[1754115416013,4.907,3493.9,3492.9,0.9508]
[1754115416314,4.907,3493.9,3493.0,0.9508]
[1754115416473,4.907,3493.9,3493.1,0.9508]
[1754115416679,4.902,3493.8,3493.2,0.9508]
[1754115416905,4.902,3493.8,3493.3,0.9508]
[1754115417105,4.902,3493.8,3493.4,0.9508]
[1754115417293,0.1432,3493.7,3493.2,0.1432]
[1754115417495,4.899,3493.6,3493.5,0.9508]
[1754115418302,4.899,3493.6,3492.6,0.11681265]
[1754115418486,4.899,3493.6,3493.3,0.9508]
[1754115418687,4.899,3493.6,3493.4,0.9508]
[1754115419014,0.1432,3493.5,3492.8,0.1432]
[1754115419182,6.875,3494.0,3492.8,0.1432]